[Event "Titled Tuesday Blitz November 14 Early 2023"]
[White "Dwilewicz, Katarzyna"]
[Black "Lukovic, Vladimir"]
[WhiteFideId "1148486"]
[BlackFideId "942952"]
[WhiteElo "2383"]
[BlackElo "2709"]
[Result "1-0"]
[Round "2"]
[TimeControl "180+1"]
[Date "2023.11.14"]
[WhiteClock "0:00:03"]
[BlackClock "0:00:01"]
[Board "144"]

1. e4 {[%clk 0:03:00]}  Nc6 {[%clk 0:02:50]} 2. Nf3 {[%clk 0:02:52]}  e5 {[%clk 0:02:49]} 3. Bc4 {[%clk 0:02:50]}  Be7 {[%clk 0:02:48]} 4. d4 {[%clk 0:02:50]}  exd4 {[%clk 0:02:47]} 5. Nxd4 {[%clk 0:02:51]}  Nf6 {[%clk 0:02:46]} 6. Nc3 {[%clk 0:02:51]}  O-O {[%clk 0:02:46]} 7. O-O {[%clk 0:02:48]}  d6 {[%clk 0:02:45]} 8. h3 {[%clk 0:02:45]}  Re8 {[%clk 0:02:44]} 9. Re1 {[%clk 0:02:43]}  Bd7 {[%clk 0:02:45]} 10. Bf4 {[%clk 0:02:37]}  Ne5 {[%clk 0:02:44]} 11. Bb3 {[%clk 0:02:35]}  Bf8 {[%clk 0:02:38]} 12. Bg3 {[%clk 0:02:26]}  g6 {[%clk 0:02:16]} 13. f4 {[%clk 0:02:20]}  Nc6 {[%clk 0:02:15]} 14. Nf3 {[%clk 0:02:08]}  Nh5 {[%clk 0:01:59]} 15. Bh4 {[%clk 0:01:17]}  Be7 {[%clk 0:01:55]} 16. Bxe7 {[%clk 0:01:16]}  Qxe7 {[%clk 0:01:56]} 17. Ng5 {[%clk 0:01:16]}  Rf8 {[%clk 0:01:31]} 18. Nd5 {[%clk 0:01:13]}  Qd8 {[%clk 0:01:31]} 19. Qd2 {[%clk 0:01:07]}  Ne7 {[%clk 0:01:17]} 20. Rad1 {[%clk 0:00:54]}  Nxd5 {[%clk 0:01:12]} 21. Bxd5 {[%clk 0:00:54]}  Bc6 {[%clk 0:01:12]} 22. Bxc6 {[%clk 0:00:33]}  bxc6 {[%clk 0:01:13]} 23. g4 {[%clk 0:00:33]}  Ng7 {[%clk 0:01:08]} 24. Qc3 {[%clk 0:00:30]}  Ne6 {[%clk 0:00:56]} 25. Nxe6 {[%clk 0:00:17]}  fxe6 {[%clk 0:00:57]} 26. Rf1 {[%clk 0:00:16]}  Qd7 {[%clk 0:00:55]} 27. Kg2 {[%clk 0:00:14]}  Rf7 {[%clk 0:00:55]} 28. b3 {[%clk 0:00:11]}  Raf8 {[%clk 0:00:55]} 29. Qe3 {[%clk 0:00:11]}  a5 {[%clk 0:00:52]} 30. a4 {[%clk 0:00:11]}  Qe7 {[%clk 0:00:48]} 31. Rf2 {[%clk 0:00:11]}  e5 {[%clk 0:00:47]} 32. f5 {[%clk 0:00:10]}  g5 {[%clk 0:00:40]} 33. Rh1 {[%clk 0:00:09]}  Rg7 {[%clk 0:00:39]} 34. Kf1 {[%clk 0:00:06]}  c5 {[%clk 0:00:38]} 35. Ke2 {[%clk 0:00:06]}  Qf6 {[%clk 0:00:36]} 36. Qc3 {[%clk 0:00:07]}  Rd8 {[%clk 0:00:30]} 37. Rd1 {[%clk 0:00:05]}  Ra8 {[%clk 0:00:29]} 38. Rf3 {[%clk 0:00:05]}  Rf7 {[%clk 0:00:28]} 39. Rfd3 {[%clk 0:00:04]}  Kg7 {[%clk 0:00:27]} 40. Rf3 {[%clk 0:00:04]}  Rff8 {[%clk 0:00:26]} 41. Rh1 {[%clk 0:00:04]}  h6 {[%clk 0:00:25]} 42. Rf2 {[%clk 0:00:05]}  Rfb8 {[%clk 0:00:25]} 43. Rfh2 {[%clk 0:00:04]}  Rb4 {[%clk 0:00:25]} 44. Qd3 {[%clk 0:00:04]}  Rh8 {[%clk 0:00:23]} 45. h4 {[%clk 0:00:04]}  gxh4 {[%clk 0:00:22]} 46. Rxh4 {[%clk 0:00:05]}  Qg5 {[%clk 0:00:22]} 47. Qe3 {[%clk 0:00:04]}  Qxe3+ {[%clk 0:00:18]} 48. Kxe3 {[%clk 0:00:05]}  c4 {[%clk 0:00:19]} 49. g5 {[%clk 0:00:05]}  cxb3 {[%clk 0:00:19]} 50. gxh6+ {[%clk 0:00:05]}  Kf6 {[%clk 0:00:19]} 51. Rg1 {[%clk 0:00:05]}  b2 {[%clk 0:00:17]} 52. Rb1 {[%clk 0:00:05]}  Rhb8 {[%clk 0:00:15]} 53. h7 {[%clk 0:00:05]}  Rh8 {[%clk 0:00:15]} 54. Kd2 {[%clk 0:00:05]}  Kg7 {[%clk 0:00:13]} 55. c3 {[%clk 0:00:05]}  Rxa4 {[%clk 0:00:13]} 56. Rxb2 {[%clk 0:00:04]}  Rxh7 {[%clk 0:00:13]} 57. f6+ {[%clk 0:00:04]}  Kh8 {[%clk 0:00:13]} 58. f7 {[%clk 0:00:03]}  Rxh4 {[%clk 0:00:04]} 59. f8=Q+ {[%clk 0:00:03]}  Kh7 {[%clk 0:00:05]} 60. Qf7+ {[%clk 0:00:04]}  Kh6 {[%clk 0:00:05]} 61. Rb1 {[%clk 0:00:03]}  Ra2+ {[%clk 0:00:04]} 62. Kd3 {[%clk 0:00:04]}  Rg2 {[%clk 0:00:02]} 63. Qf6+ {[%clk 0:00:03]}  Kh5 {[%clk 0:00:01]} 64. Rf1 {[%clk 0:00:04]}  Rg5 {[%clk 0:00:01]} 65. Qf7+ {[%clk 0:00:03]}  Kg4 {[%clk 0:00:01]} 66. Qf3# {[%clk 0:00:03]} 1-0


[Site "https://www.chess.com"]

[Event "Titled Tuesday Blitz November 14 Early 2023"]
[White "Hoffmann, Asa"]
[Black "MKlose11"]
[WhiteFideId "2001470"]
[WhiteElo "2380"]
[BlackElo "2692"]
[Result "1-0"]
[Round "2"]
[TimeControl "180+1"]
[Date "2023.11.14"]
[WhiteClock "0:00:41"]
[BlackClock "0:00:31"]
[Board "145"]

1. d4 {[%clk 0:03:00]}  Nf6 {[%clk 0:02:58]} 2. Bg5 {[%clk 0:02:56]}  g6 {[%clk 0:02:55]} 3. Nc3 {[%clk 0:02:55]}  d5 {[%clk 0:02:55]} 4. f3 {[%clk 0:02:54]}  Bg7 {[%clk 0:02:51]} 5. e4 {[%clk 0:02:53]}  O-O {[%clk 0:02:45]} 6. e5 {[%clk 0:02:51]}  Ne8 {[%clk 0:02:44]} 7. Qd2 {[%clk 0:02:51]}  c5 {[%clk 0:02:43]} 8. dxc5 {[%clk 0:02:44]}  d4 {[%clk 0:02:43]} 9. Ne4 {[%clk 0:02:41]}  Bxe5 {[%clk 0:02:41]} 10. h4 {[%clk 0:02:36]}  f5 {[%clk 0:02:31]} 11. Bc4+ {[%clk 0:02:30]}  e6 {[%clk 0:02:29]} 12. Bxd8 {[%clk 0:02:26]}  Nc6 {[%clk 0:02:27]} 13. Bg5 {[%clk 0:02:01]}  fxe4 {[%clk 0:02:25]} 14. fxe4 {[%clk 0:01:57]}  Bg3+ {[%clk 0:02:25]} 15. Kd1 {[%clk 0:01:56]}  Ne5 {[%clk 0:02:20]} 16. Be2 {[%clk 0:01:52]}  Bd7 {[%clk 0:02:08]} 17. Nh3 {[%clk 0:01:46]}  Bc6 {[%clk 0:02:06]} 18. Bf4 {[%clk 0:01:44]}  Bxf4 {[%clk 0:01:58]} 19. Nxf4 {[%clk 0:01:43]}  Ng7 {[%clk 0:01:54]} 20. Bf3 {[%clk 0:01:40]}  Nc4 {[%clk 0:01:51]} 21. Qc1 {[%clk 0:01:27]}  Ne3+ {[%clk 0:01:47]} 22. Ke1 {[%clk 0:01:21]}  Rxf4 {[%clk 0:01:46]} 23. c3 {[%clk 0:01:20]}  e5 {[%clk 0:01:41]} 24. cxd4 {[%clk 0:01:04]}  exd4 {[%clk 0:01:42]} 25. Kd2 {[%clk 0:01:04]}  Ne6 {[%clk 0:01:27]} 26. Re1 {[%clk 0:01:03]}  Rxh4 {[%clk 0:01:07]} 27. Rxe3 {[%clk 0:01:03]}  dxe3+ {[%clk 0:01:07]} 28. Kxe3 {[%clk 0:01:03]}  Re8 {[%clk 0:01:04]} 29. Qc4 {[%clk 0:01:00]}  Kg7 {[%clk 0:01:00]} 30. Rd1 {[%clk 0:00:59]}  Rf4 {[%clk 0:00:56]} 31. Rd6 {[%clk 0:00:54]}  Rf6 {[%clk 0:00:41]} 32. e5 {[%clk 0:00:48]}  Rxf3+ {[%clk 0:00:36]} 33. gxf3 {[%clk 0:00:47]}  Ng5 {[%clk 0:00:37]} 34. f4 {[%clk 0:00:43]}  Ne4 {[%clk 0:00:33]} 35. Rxc6 {[%clk 0:00:41]}  bxc6 {[%clk 0:00:32]} 36. Qxe4 {[%clk 0:00:41]}  Re7 {[%clk 0:00:31]} 37. Qxc6 {[%clk 0:00:41]} 1-0


[Site "https://www.chess.com"]

[Event "Titled Tuesday Blitz November 14 Early 2023"]
[White "Koellner, Ruben Gideon"]
[Black "MarijaKuznecova"]
[WhiteFideId "12993093"]
[WhiteElo "2667"]
[BlackElo "2378"]
[Result "1-0"]
[Round "2"]
[TimeControl "180+1"]
[Date "2023.11.14"]
[WhiteClock "0:02:28"]
[BlackClock "0:00:53"]
[Board "146"]

1. d4 {[%clk 0:02:59]}  Nf6 {[%clk 0:02:59]} 2. Nf3 {[%clk 0:02:59]}  c5 {[%clk 0:02:59]} 3. e3 {[%clk 0:02:59]}  d5 {[%clk 0:02:58]} 4. c3 {[%clk 0:02:59]}  e6 {[%clk 0:02:54]} 5. Nbd2 {[%clk 0:02:59]}  Bd6 {[%clk 0:02:53]} 6. Bd3 {[%clk 0:02:59]}  b6 {[%clk 0:02:53]} 7. Ne5 {[%clk 0:02:58]}  Bb7 {[%clk 0:02:53]} 8. f4 {[%clk 0:02:58]}  Nbd7 {[%clk 0:02:51]} 9. Qf3 {[%clk 0:02:59]}  Qc7 {[%clk 0:02:20]} 10. O-O {[%clk 0:02:57]}  Ng8 {[%clk 0:02:10]} 11. Qh5 {[%clk 0:02:54]}  g6 {[%clk 0:02:04]} 12. Qh3 {[%clk 0:02:50]}  Ne7 {[%clk 0:01:56]} 13. Ndf3 {[%clk 0:02:50]}  f6 {[%clk 0:01:53]} 14. Qxe6 {[%clk 0:02:46]}  fxe5 {[%clk 0:01:20]} 15. fxe5 {[%clk 0:02:44]}  Bxe5 {[%clk 0:01:11]} 16. Nxe5 {[%clk 0:02:40]}  Nxe5 {[%clk 0:01:08]} 17. dxe5 {[%clk 0:02:40]}  Bc8 {[%clk 0:01:02]} 18. Bb5+ {[%clk 0:02:32]}  Kd8 {[%clk 0:01:01]} 19. Qf6 {[%clk 0:02:29]}  Rg8 {[%clk 0:00:53]} 20. Qf8+ {[%clk 0:02:28]} 1-0


[Site "https://www.chess.com"]

[Event "Titled Tuesday Blitz November 14 Early 2023"]
[White "Kleiman, Jake"]
[Black "Jamal-Jamal-Jamal"]
[WhiteFideId "2020041"]
[WhiteElo "2646"]
[BlackElo "2371"]
[Result "1-0"]
[Round "2"]
[TimeControl "180+1"]
[Date "2023.11.14"]
[WhiteClock "0:00:35"]
[BlackClock "0:00:21"]
[Board "148"]

1. c4 {[%clk 0:02:54]}  e6 {[%clk 0:02:59]} 2. Nf3 {[%clk 0:02:54]}  Nf6 {[%clk 0:02:56]} 3. e3 {[%clk 0:02:51]}  b6 {[%clk 0:02:53]} 4. Nc3 {[%clk 0:02:51]}  Bb7 {[%clk 0:02:52]} 5. Be2 {[%clk 0:02:51]}  Be7 {[%clk 0:02:52]} 6. b3 {[%clk 0:02:51]}  O-O {[%clk 0:02:53]} 7. Bb2 {[%clk 0:02:52]}  c5 {[%clk 0:02:53]} 8. Qc2 {[%clk 0:02:46]}  d6 {[%clk 0:02:52]} 9. Rg1 {[%clk 0:02:41]}  Nbd7 {[%clk 0:02:38]} 10. g4 {[%clk 0:02:41]}  Ne8 {[%clk 0:02:36]} 11. g5 {[%clk 0:02:39]}  Ne5 {[%clk 0:02:34]} 12. Nxe5 {[%clk 0:02:31]}  dxe5 {[%clk 0:02:32]} 13. Ne4 {[%clk 0:02:32]}  Qc7 {[%clk 0:02:26]} 14. O-O-O {[%clk 0:02:26]}  a6 {[%clk 0:02:01]} 15. h4 {[%clk 0:02:11]}  b5 {[%clk 0:02:00]} 16. h5 {[%clk 0:02:03]}  bxc4 {[%clk 0:01:53]} 17. Bxc4 {[%clk 0:02:02]}  Bd5 {[%clk 0:01:43]} 18. f4 {[%clk 0:01:46]}  Qb7 {[%clk 0:01:24]} 19. Bd3 {[%clk 0:01:24]}  Kh8 {[%clk 0:00:50]} 20. Bxe5 {[%clk 0:01:17]}  f6 {[%clk 0:00:50]} 21. gxf6 {[%clk 0:01:15]}  gxf6 {[%clk 0:00:50]} 22. Bb2 {[%clk 0:01:10]}  Rb8 {[%clk 0:00:40]} 23. Nc3 {[%clk 0:00:46]}  c4 {[%clk 0:00:28]} 24. bxc4 {[%clk 0:00:41]}  Bc6 {[%clk 0:00:24]} 25. Bxh7 {[%clk 0:00:37]}  Rf7 {[%clk 0:00:21]} 26. Rg8# {[%clk 0:00:35]} 1-0


[Site "https://www.chess.com"]

[Event "Titled Tuesday Blitz November 14 Early 2023"]
[White "Feuerstack, Aljoscha"]
[Black "Vigoa Apecheche, Yanira"]
[WhiteFideId "4681932"]
[BlackFideId "3507041"]
[WhiteElo "2608"]
[BlackElo "2364"]
[Result "1-0"]
[Round "2"]
[TimeControl "180+1"]
[Date "2023.11.14"]
[WhiteClock "0:00:19"]
[BlackClock "0:00:15"]
[Board "152"]

1. e4 {[%clk 0:03:00]}  c5 {[%clk 0:02:59]} 2. Nf3 {[%clk 0:03:00]}  Nc6 {[%clk 0:02:59]} 3. d3 {[%clk 0:02:58]}  g6 {[%clk 0:02:58]} 4. g3 {[%clk 0:02:58]}  Bg7 {[%clk 0:02:58]} 5. Bg2 {[%clk 0:02:58]}  d6 {[%clk 0:02:58]} 6. O-O {[%clk 0:02:59]}  e5 {[%clk 0:02:57]} 7. Bg5 {[%clk 0:02:50]}  f6 {[%clk 0:02:57]} 8. Be3 {[%clk 0:02:49]}  Nge7 {[%clk 0:02:57]} 9. c3 {[%clk 0:02:40]}  f5 {[%clk 0:02:53]} 10. Qb3 {[%clk 0:02:10]}  Qb6 {[%clk 0:02:49]} 11. Nbd2 {[%clk 0:01:53]}  Qxb3 {[%clk 0:02:36]} 12. axb3 {[%clk 0:01:54]}  Be6 {[%clk 0:02:33]} 13. Ng5 {[%clk 0:01:41]}  Bg8 {[%clk 0:02:29]} 14. Nc4 {[%clk 0:01:39]}  Rd8 {[%clk 0:01:39]} 15. exf5 {[%clk 0:01:36]}  Nxf5 {[%clk 0:01:35]} 16. Bxc6+ {[%clk 0:01:34]}  bxc6 {[%clk 0:01:34]} 17. Rxa7 {[%clk 0:01:35]}  d5 {[%clk 0:00:55]} 18. Na5 {[%clk 0:01:33]}  d4 {[%clk 0:00:53]} 19. cxd4 {[%clk 0:01:24]}  cxd4 {[%clk 0:00:53]} 20. Bd2 {[%clk 0:01:24]}  Bh6 {[%clk 0:00:42]} 21. Nxc6 {[%clk 0:01:17]}  Rc8 {[%clk 0:00:41]} 22. Nxe5 {[%clk 0:01:11]}  Rc2 {[%clk 0:00:37]} 23. Bf4 {[%clk 0:00:47]}  Bd5 {[%clk 0:00:29]} 24. Re1 {[%clk 0:00:32]}  O-O {[%clk 0:00:27]} 25. Nxh7 {[%clk 0:00:31]}  Bxf4 {[%clk 0:00:23]} 26. Nxg6 {[%clk 0:00:24]}  Rfc8 {[%clk 0:00:15]} 27. Nf6# {[%clk 0:00:19]} 1-0


[Site "https://www.chess.com"]

[Event "Titled Tuesday Blitz November 14 Early 2023"]
[White "Zarnicki, Pablo"]
[Black "Melikhov, Evgeny V."]
[WhiteFideId "100137"]
[BlackFideId "4122046"]
[WhiteElo "2606"]
[BlackElo "2364"]
[Result "0-1"]
[Round "2"]
[TimeControl "180+1"]
[Date "2023.11.14"]
[WhiteClock "0:00:58"]
[BlackClock "0:01:06"]
[Board "153"]

1. e4 {[%clk 0:03:00]}  e5 {[%clk 0:02:58]} 2. Nf3 {[%clk 0:02:59]}  Nc6 {[%clk 0:02:58]} 3. Nc3 {[%clk 0:02:50]}  Nf6 {[%clk 0:02:56]} 4. Bb5 {[%clk 0:02:49]}  Bb4 {[%clk 0:02:55]} 5. O-O {[%clk 0:02:40]}  O-O {[%clk 0:02:53]} 6. Bxc6 {[%clk 0:02:30]}  dxc6 {[%clk 0:02:50]} 7. d3 {[%clk 0:02:22]}  Bd6 {[%clk 0:02:45]} 8. Ne2 {[%clk 0:02:10]}  c5 {[%clk 0:02:43]} 9. Ng3 {[%clk 0:02:10]}  Nd7 {[%clk 0:02:25]} 10. h3 {[%clk 0:01:59]}  f6 {[%clk 0:02:22]} 11. Nh2 {[%clk 0:01:55]}  Rf7 {[%clk 0:02:22]} 12. f4 {[%clk 0:01:39]}  exf4 {[%clk 0:02:21]} 13. Bxf4 {[%clk 0:01:38]}  Bxf4 {[%clk 0:02:14]} 14. Rxf4 {[%clk 0:01:38]}  Ne5 {[%clk 0:02:13]} 15. Qd2 {[%clk 0:01:37]}  Qd4+ {[%clk 0:02:10]} 16. Kh1 {[%clk 0:01:35]}  c4 {[%clk 0:01:58]} 17. Nf3 {[%clk 0:01:22]}  Nxf3 {[%clk 0:01:57]} 18. Rxf3 {[%clk 0:01:23]}  Qxb2 {[%clk 0:01:51]} 19. Raf1 {[%clk 0:01:20]}  Be6 {[%clk 0:01:35]} 20. d4 {[%clk 0:01:15]}  Rd8 {[%clk 0:01:28]} 21. d5 {[%clk 0:01:15]}  c6 {[%clk 0:01:28]} 22. Qa5 {[%clk 0:01:13]}  b6 {[%clk 0:01:19]} 23. Qe1 {[%clk 0:01:12]}  cxd5 {[%clk 0:01:15]} 24. exd5 {[%clk 0:01:11]}  Bxd5 {[%clk 0:01:14]} 25. Re3 {[%clk 0:01:11]}  Qxc2 {[%clk 0:01:08]} 26. Nf5 {[%clk 0:00:58]}  Qxg2# {[%clk 0:01:06]} 0-1


[Site "https://www.chess.com"]

[Event "Titled Tuesday Blitz November 14 Early 2023"]
[White "Statham_l3"]
[Black "Manon-og, Ramon Jr."]
[BlackFideId "5200776"]
[WhiteElo "2594"]
[BlackElo "2355"]
[Result "1-0"]
[Round "2"]
[TimeControl "180+1"]
[Date "2023.11.14"]
[WhiteClock "0:00:03"]
[BlackClock "0:00:03"]
[Board "155"]

1. e4 {[%clk 0:02:57]}  c5 {[%clk 0:02:58]} 2. Nf3 {[%clk 0:02:57]}  d6 {[%clk 0:02:59]} 3. d4 {[%clk 0:02:58]}  cxd4 {[%clk 0:03:00]} 4. Nxd4 {[%clk 0:02:59]}  Nf6 {[%clk 0:02:59]} 5. Nc3 {[%clk 0:02:59]}  a6 {[%clk 0:03:00]} 6. Be3 {[%clk 0:02:58]}  e5 {[%clk 0:03:00]} 7. Nb3 {[%clk 0:02:58]}  Be7 {[%clk 0:03:00]} 8. f3 {[%clk 0:02:58]}  O-O {[%clk 0:03:00]} 9. Qd2 {[%clk 0:02:56]}  h5 {[%clk 0:03:00]} 10. O-O-O {[%clk 0:02:49]}  Be6 {[%clk 0:03:00]} 11. h3 {[%clk 0:02:48]}  a5 {[%clk 0:02:59]} 12. Bb5 {[%clk 0:02:31]}  Nc6 {[%clk 0:02:55]} 13. g4 {[%clk 0:02:27]}  h4 {[%clk 0:02:51]} 14. f4 {[%clk 0:02:07]}  exf4 {[%clk 0:02:32]} 15. Bxf4 {[%clk 0:02:08]}  Ne5 {[%clk 0:02:33]} 16. Nd4 {[%clk 0:01:55]}  a4 {[%clk 0:02:04]} 17. Nf5 {[%clk 0:01:34]}  a3 {[%clk 0:01:52]} 18. b3 {[%clk 0:01:24]}  Bxf5 {[%clk 0:01:38]} 19. exf5 {[%clk 0:01:04]}  Qa5 {[%clk 0:01:33]} 20. g5 {[%clk 0:00:49]}  Nh5 {[%clk 0:01:28]} 21. Nd5 {[%clk 0:00:33]}  Qxb5 {[%clk 0:01:11]} 22. Nxe7+ {[%clk 0:00:32]}  Kh8 {[%clk 0:01:11]} 23. Qf2 {[%clk 0:00:14]}  g6 {[%clk 0:00:20]} 24. Rd5 {[%clk 0:00:12]}  Qd7 {[%clk 0:00:17]} 25. Bxe5+ {[%clk 0:00:05]}  dxe5 {[%clk 0:00:15]} 26. Rxd7 {[%clk 0:00:05]}  Ng3 {[%clk 0:00:14]} 27. Rg1 {[%clk 0:00:04]}  Rad8 {[%clk 0:00:13]} 28. Rxd8 {[%clk 0:00:04]}  Rxd8 {[%clk 0:00:14]} 29. Rxg3 {[%clk 0:00:04]}  hxg3 {[%clk 0:00:11]} 30. Qxg3 {[%clk 0:00:05]}  Kg7 {[%clk 0:00:08]} 31. f6+ {[%clk 0:00:05]}  Kf8 {[%clk 0:00:08]} 32. Qh4 {[%clk 0:00:04]}  Ke8 {[%clk 0:00:09]} 33. Qa4+ {[%clk 0:00:04]}  Rd7 {[%clk 0:00:08]} 34. Qxa3 {[%clk 0:00:03]}  e4 {[%clk 0:00:08]} 35. Qc5 {[%clk 0:00:03]}  b6 {[%clk 0:00:07]} 36. Qe5 {[%clk 0:00:03]}  e3 {[%clk 0:00:07]} 37. Qxe3 {[%clk 0:00:03]}  Kd8 {[%clk 0:00:07]} 38. Qxb6+ {[%clk 0:00:03]}  Ke8 {[%clk 0:00:06]} 39. Qc6 {[%clk 0:00:03]}  Kd8 {[%clk 0:00:03]} 40. Qc8# {[%clk 0:00:03]} 1-0


[Site "https://www.chess.com"]

[Event "Titled Tuesday Blitz November 14 Early 2023"]
[White "Jarocka, Liwia"]
[Black "aghasiyevkamal"]
[WhiteFideId "21807558"]
[WhiteElo "2346"]
[BlackElo "2577"]
[Result "1/2-1/2"]
[Round "2"]
[TimeControl "180+1"]
[Date "2023.11.14"]
[WhiteClock "0:00:21"]
[BlackClock "0:00:10"]
[Board "156"]

1. e4 {[%clk 0:03:00]}  e6 {[%clk 0:03:00]} 2. d4 {[%clk 0:03:00]}  d5 {[%clk 0:03:00]} 3. Nd2 {[%clk 0:03:01]}  Nf6 {[%clk 0:02:57]} 4. e5 {[%clk 0:03:01]}  Nfd7 {[%clk 0:02:57]} 5. Bd3 {[%clk 0:03:01]}  c5 {[%clk 0:02:57]} 6. c3 {[%clk 0:03:02]}  b6 {[%clk 0:02:57]} 7. Nh3 {[%clk 0:02:51]}  Ba6 {[%clk 0:02:49]} 8. Bxa6 {[%clk 0:02:47]}  Nxa6 {[%clk 0:02:49]} 9. O-O {[%clk 0:02:48]}  Nc7 {[%clk 0:02:46]} 10. Qg4 {[%clk 0:02:45]}  f5 {[%clk 0:02:10]} 11. exf6 {[%clk 0:02:38]}  Nxf6 {[%clk 0:02:10]} 12. Qe2 {[%clk 0:02:34]}  Bd6 {[%clk 0:02:00]} 13. Nf3 {[%clk 0:02:30]}  O-O {[%clk 0:01:57]} 14. Bf4 {[%clk 0:02:12]}  Bxf4 {[%clk 0:01:45]} 15. Nxf4 {[%clk 0:02:11]}  Ne4 {[%clk 0:01:45]} 16. Nd3 {[%clk 0:02:04]}  c4 {[%clk 0:01:37]} 17. Nde5 {[%clk 0:02:03]}  Qd6 {[%clk 0:01:37]} 18. g3 {[%clk 0:01:58]}  b5 {[%clk 0:01:36]} 19. a3 {[%clk 0:01:57]}  a5 {[%clk 0:01:18]} 20. Nd2 {[%clk 0:01:57]}  Nf6 {[%clk 0:01:09]} 21. Ra2 {[%clk 0:01:21]}  b4 {[%clk 0:01:05]} 22. axb4 {[%clk 0:01:21]}  axb4 {[%clk 0:01:06]} 23. Rfa1 {[%clk 0:01:21]}  Rxa2 {[%clk 0:01:04]} 24. Rxa2 {[%clk 0:01:22]}  bxc3 {[%clk 0:01:04]} 25. bxc3 {[%clk 0:01:13]}  Nb5 {[%clk 0:01:04]} 26. Nb1 {[%clk 0:01:03]}  Ne4 {[%clk 0:00:52]} 27. Nxc4 {[%clk 0:00:54]}  Qc7 {[%clk 0:00:45]} 28. Ncd2 {[%clk 0:00:40]}  Nbxc3 {[%clk 0:00:20]} 29. Nxc3 {[%clk 0:00:39]}  Nxc3 {[%clk 0:00:13]} 30. Qxe6+ {[%clk 0:00:39]}  Kh8 {[%clk 0:00:12]} 31. Ra1 {[%clk 0:00:35]}  Qb7 {[%clk 0:00:10]} 32. Nf1 {[%clk 0:00:31]}  Qb2 {[%clk 0:00:09]} 33. Qe1 {[%clk 0:00:28]}  Ne2+ {[%clk 0:00:09]} 34. Kh1 {[%clk 0:00:26]}  Nxd4 {[%clk 0:00:10]} 35. Ne3 {[%clk 0:00:24]}  h6 {[%clk 0:00:09]} 36. Nxd5 {[%clk 0:00:23]}  Qb7 {[%clk 0:00:09]} 37. Qe4 {[%clk 0:00:20]}  Nb3 {[%clk 0:00:07]} 38. Rb1 {[%clk 0:00:19]}  Rd8 {[%clk 0:00:04]} 39. Nc3 {[%clk 0:00:18]}  Qxe4+ {[%clk 0:00:02]} 40. Nxe4 {[%clk 0:00:19]}  Nd4 {[%clk 0:00:02]} 41. Kg2 {[%clk 0:00:19]}  Ne6 {[%clk 0:00:02]} 42. Rb6 {[%clk 0:00:18]}  Re8 {[%clk 0:00:02]} 43. Nd6 {[%clk 0:00:17]}  Re7 {[%clk 0:00:02]} 44. Nf7+ {[%clk 0:00:17]}  Rxf7 {[%clk 0:00:02]} 45. Rxe6 {[%clk 0:00:18]}  Kh7 {[%clk 0:00:03]} 46. Re3 {[%clk 0:00:18]}  g5 {[%clk 0:00:03]} 47. h3 {[%clk 0:00:18]}  Kg6 {[%clk 0:00:04]} 48. Re6+ {[%clk 0:00:19]}  Kg7 {[%clk 0:00:04]} 49. Rd6 {[%clk 0:00:19]}  Re7 {[%clk 0:00:04]} 50. h4 {[%clk 0:00:18]}  gxh4 {[%clk 0:00:04]} 51. gxh4 {[%clk 0:00:19]}  Re4 {[%clk 0:00:04]} 52. Kg3 {[%clk 0:00:19]}  h5 {[%clk 0:00:04]} 53. f3 {[%clk 0:00:20]}  Ra4 {[%clk 0:00:04]} 54. Rc6 {[%clk 0:00:21]}  Rb4 {[%clk 0:00:04]} 55. Rc5 {[%clk 0:00:21]}  Kh6 {[%clk 0:00:04]} 56. Rc3 {[%clk 0:00:20]}  Rd4 {[%clk 0:00:04]} 57. f4 {[%clk 0:00:20]}  Rd1 {[%clk 0:00:03]} 58. f5 {[%clk 0:00:20]}  Rf1 {[%clk 0:00:03]} 59. Rc6+ {[%clk 0:00:18]}  Kg7 {[%clk 0:00:03]} 60. Rg6+ {[%clk 0:00:17]}  Kf7 {[%clk 0:00:03]} 61. Rg5 {[%clk 0:00:17]}  Kf6 {[%clk 0:00:04]} 62. Rxh5 {[%clk 0:00:17]}  Rxf5 {[%clk 0:00:04]} 63. Rh6+ {[%clk 0:00:17]}  Kg7 {[%clk 0:00:04]} 64. Rc6 {[%clk 0:00:17]}  Rf1 {[%clk 0:00:04]} 65. Kg4 {[%clk 0:00:16]}  Rg1+ {[%clk 0:00:04]} 66. Kh5 {[%clk 0:00:16]}  Kh7 {[%clk 0:00:04]} 67. Rc7+ {[%clk 0:00:17]}  Rg7 {[%clk 0:00:05]} 68. Rxg7+ {[%clk 0:00:16]}  Kxg7 {[%clk 0:00:05]} 69. Kg5 {[%clk 0:00:17]}  Kh7 {[%clk 0:00:06]} 70. h5 {[%clk 0:00:18]}  Kg7 {[%clk 0:00:07]} 71. h6+ {[%clk 0:00:19]}  Kh7 {[%clk 0:00:07]} 72. Kh5 {[%clk 0:00:19]}  Kh8 {[%clk 0:00:08]} 73. Kg6 {[%clk 0:00:20]}  Kg8 {[%clk 0:00:09]} 74. h7+ {[%clk 0:00:21]}  Kh8 {[%clk 0:00:10]} 75. Kh6 {[%clk 0:00:21]} 1/2-1/2


[Site "https://www.chess.com"]

[Event "Titled Tuesday Blitz November 14 Early 2023"]
[White "Lymar, Vladislav"]
[Black "Garrido, Denis"]
[WhiteFideId "14162180"]
[BlackFideId "601217"]
[WhiteElo "2573"]
[BlackElo "2344"]
[Result "1-0"]
[Round "2"]
[TimeControl "180+1"]
[Date "2023.11.14"]
[WhiteClock "0:00:55"]
[BlackClock "0:00:16"]
[Board "157"]

1. d4 {[%clk 0:03:00]}  Nf6 {[%clk 0:01:39]} 2. c4 {[%clk 0:03:00]}  e6 {[%clk 0:01:38]} 3. Bf4 {[%clk 0:03:01]}  d5 {[%clk 0:01:38]} 4. cxd5 {[%clk 0:03:02]}  exd5 {[%clk 0:01:38]} 5. e3 {[%clk 0:03:02]}  Bd6 {[%clk 0:01:37]} 6. Bxd6 {[%clk 0:03:02]}  Qxd6 {[%clk 0:01:38]} 7. Bd3 {[%clk 0:03:02]}  O-O {[%clk 0:01:39]} 8. Nc3 {[%clk 0:03:03]}  c6 {[%clk 0:01:39]} 9. h3 {[%clk 0:03:03]}  Re8 {[%clk 0:01:39]} 10. Qc2 {[%clk 0:03:03]}  Nbd7 {[%clk 0:01:38]} 11. Nf3 {[%clk 0:03:03]}  Nf8 {[%clk 0:01:38]} 12. O-O {[%clk 0:03:02]}  Ne6 {[%clk 0:01:39]} 13. Rab1 {[%clk 0:02:58]}  g6 {[%clk 0:01:37]} 14. b4 {[%clk 0:02:57]}  a6 {[%clk 0:01:37]} 15. Rfc1 {[%clk 0:02:53]}  Ng7 {[%clk 0:01:38]} 16. a4 {[%clk 0:02:52]}  Bf5 {[%clk 0:01:38]} 17. b5 {[%clk 0:02:51]}  axb5 {[%clk 0:01:37]} 18. axb5 {[%clk 0:02:51]}  Ra3 {[%clk 0:01:35]} 19. bxc6 {[%clk 0:02:41]}  bxc6 {[%clk 0:01:34]} 20. Bxf5 {[%clk 0:02:22]}  Nxf5 {[%clk 0:01:35]} 21. Rb6 {[%clk 0:02:21]}  Rea8 {[%clk 0:01:28]} 22. Nb5 {[%clk 0:02:13]}  Qb4 {[%clk 0:01:19]} 23. Qxc6 {[%clk 0:02:08]}  Ra1 {[%clk 0:01:06]} 24. g4 {[%clk 0:01:44]}  Rxc1+ {[%clk 0:00:54]} 25. Qxc1 {[%clk 0:01:45]}  Ne7 {[%clk 0:00:38]} 26. Rxf6 {[%clk 0:01:24]}  Qxb5 {[%clk 0:00:38]} 27. Ne5 {[%clk 0:01:19]}  Rf8 {[%clk 0:00:31]} 28. Qc7 {[%clk 0:01:12]}  Qb4 {[%clk 0:00:29]} 29. Kg2 {[%clk 0:01:02]}  Kg7 {[%clk 0:00:28]} 30. Rb6 {[%clk 0:00:58]}  Qa5 {[%clk 0:00:22]} 31. Qxe7 {[%clk 0:00:55]}  Qxb6 {[%clk 0:00:16]} 32. Qxf8+ {[%clk 0:00:55]} 1-0


[Site "https://www.chess.com"]